bitfinex/quotes_ETHUSD_20240817
["timestamp","ask_amount","ask_price","bid_price","bid_amount"]
[1723855395023,1.664,2601.2,2601.1,3.0]
[1723855396429,1.664,2601.2,2601.1,3.78508414]
[1723855397913,1.664,2601.2,2601.1,3.0]
[1723855398157,1.664,2601.2,2600.9,3.0]
[1723855398359,1.664,2601.0,2600.9,3.0]
[1723855399922,2.4306,2601.3,2600.9,3.0]
[1723855400130,0.06524956,2601.2,2600.9,3.0]
[1723855400332,2.4306,2601.3,2600.9,3.0]
[1723855400864,0.06524956,2601.2,2600.9,3.0]
[1723855401152,2.4306,2601.3,2600.9,3.0]
[1723855401317,0.06524956,2601.2,2600.9,3.0]
[1723855401518,2.4306,2601.3,2600.9,3.0]
[1723855401766,0.06524956,2601.2,2600.9,3.0]
[1723855401931,2.4306,2601.3,2600.9,3.0]
[1723855402463,0.06547214,2601.2,2600.9,3.0]
[1723855402631,0.06547214,2601.2,2600.8,3.0]
[1723855402834,2.4306,2601.3,2600.6,13.46568]
[1723855402835,2.4306,2601.3,2600.7,4.42694962]
[1723855403050,0.06546095,2601.2,2600.7,4.42694962]
[1723855403249,0.06546095,2601.2,2600.7,8.27205962]
[1723855403451,2.4306,2601.3,2600.8,0.58381769]
[1723855403978,0.06546095,2601.2,2600.8,0.58381769]
[1723855404269,2.4306,2601.3,2600.8,0.58381769]
[1723855404474,2.4306,2601.3,2600.7,6.84511]
[1723855404673,0.06546095,2601.2,2600.8,3.84493]
[1723855404987,0.06546095,2601.2,2600.9,8.18235141]
[1723855405296,3.993,2601.4,2601.0,1.20272814]
[1723855405439,3.993,2601.4,2600.9,3.0]
[1723855405653,0.06560917,2601.3,2600.9,3.0]
[1723855407298,2.4306,2601.2,2600.9,3.0]
[1723855407604,0.06544333,2601.1,2600.7,3.0]
[1723855407952,2.4306,2601.2,2600.7,3.0]
[1723855408153,0.06543824,2601.1,2600.7,3.0]
[1723855409514,6.269,2600.8,2600.2,0.80380619]
[1723855409649,6.269,2600.8,2600.1,0.80380619]
[1723855409650,2.276,2600.8,2600.1,0.80380619]
[1723855409858,0.06538857,2600.7,2600.3,2.351]
[1723855410054,0.06538857,2600.7,2600.3,6.19668]
[1723855410354,2.276,2601.0,2600.4,1.33781091]
[1723855410566,2.276,2601.0,2600.4,3.34459465]
[1723855411045,2.276,2601.0,2600.5,3.0]
[1723855411250,2.276,2601.0,2600.4,3.0]
[1723855411600,0.06554375,2600.9,2600.4,3.0]
[1723855411747,0.06554375,2600.9,2600.5,2.95577127]
[1723855412091,7.46,2601.1,2600.7,3.84503]
[1723855412395,7.46,2601.1,2600.8,3.0]
[1723855412700,6.969,2601.5,2600.8,0.81416355]
[1723855412996,0.12710974,2601.4,2600.6,8.8517584]
[1723855413204,0.12710974,2601.3,2600.7,1.3376859]
[1723855413353,6.969,2601.5,2600.8,3.84495]
[1723855413553,6.969,2601.5,2600.9,4.33756055]
[1723855413785,0.12709997,2601.4,2600.9,3.0]
[1723855413985,6.969,2601.5,2600.9,3.0]
[1723855414184,0.12709876,2601.4,2600.9,3.42557685]
[1723855414369,6.969,2601.5,2600.9,3.42557685]
[1723855414568,0.12710164,2601.4,2600.9,3.42557685]
[1723855414781,6.969,2601.5,2600.9,3.42557685]
[1723855414994,0.12709987,2601.4,2600.9,7.27033685]
[1723855415171,6.969,2601.5,2600.9,7.27033685]
[1723855415371,0.1930983,2601.4,2600.9,7.27033685]
[1723855415595,0.12710159,2601.3,2600.9,7.27033685]
[1723855415897,0.06582836,2601.2,2600.9,7.27033685]
[1723855416253,6.969,2601.5,2601.0,0.72703369]
[1723855416453,6.969,2601.5,2600.9,7.27033685]
[1723855416454,2.276,2601.3,2600.9,3.0]
[1723855416667,2.276,2601.3,2600.7,2.00644151]
[1723855416668,0.12710905,2601.2,2600.7,3.0]
[1723855416890,0.06582836,2601.2,2600.7,3.0]
[1723855417052,0.12711361,2601.1,2600.7,3.0]
[1723855417253,0.06582836,2601.2,2600.7,3.0]
[1723855417486,0.12711368,2601.1,2600.7,3.0]
[1723855417796,0.06575536,2601.1,2600.7,3.0]
[1723855417998,2.276,2601.3,2600.6,3.0]
[1723855418201,0.19295297,2601.2,2600.6,3.0]
[1723855418362,0.12711342,2601.1,2600.6,3.0]
[1723855418562,2.34167117,2601.0,2600.6,6.59179553]
[1723855418804,2.34167117,2601.0,2600.6,4.58522379]
[1723855420767,2.34167117,2601.0,2600.5,2.81037793]
[1723855421072,2.276,2600.8,2600.2,2.00657174]
[1723855421280,2.276,2600.8,2600.1,7.00079619]
[1723855421281,0.12713052,2600.7,2600.1,2.81037793]
[1723855421493,2.276,2600.6,2600.1,3.34448198]
[1723855421869,0.06525113,2600.5,2600.1,3.34448198]
[1723855422069,2.276,2600.6,2600.1,3.34448198]
[1723855422290,0.06512611,2600.4,2600.1,3.34448198]
[1723855422468,2.276,2600.4,2599.8,0.80380619]
[1723855422676,2.276,2600.4,2599.8,2.39156152]
[1723855422900,0.06519285,2600.3,2599.9,1.33807883]
[1723855423077,0.06519285,2600.3,2599.8,1.05348269]
[1723855424572,0.06519285,2600.3,2599.8,4.05348269]
[1723855424772,0.06519285,2600.3,2599.9,0.79000327]
[1723855425916,0.06519285,2600.3,2599.9,3.14100327]
[1723855426113,0.06519285,2600.3,2600.0,3.0]
[1723855426272,2.276,2600.5,2600.0,3.0]
[1723855426477,0.06493552,2600.2,2600.0,3.0]
[1723855426677,2.976,2600.5,2599.8,3.84644]
[1723855426914,2.976,2600.5,2599.9,3.0]
[1723855427174,0.065104,2600.4,2599.9,3.0]
[1723855427371,0.065104,2600.4,2599.8,0.31548062]
[1723855427372,2.276,2600.3,2599.8,3.31548062]
[1723855427577,6.33401977,2600.3,2599.8,3.31548062]
[1723855427797,6.33401977,2600.3,2599.6,5.00718707]
[1723855428315,6.33401977,2600.3,2599.6,3.0]
[1723855428520,6.33401977,2600.3,2599.6,6.84665]
[1723855428879,6.33401977,2600.3,2599.7,3.84649]
[1723855429218,6.33401977,2600.3,2599.8,3.0]
[1723855429418,6.33401977,2600.3,2599.9,0.684649]
[1723855431218,6.33401977,2600.3,2599.8,3.0]
[1723855432899,6.33401977,2600.3,2599.7,3.0]
[1723855433916,1.665,2599.8,2599.7,3.0]
[1723855434681,1.665,2599.8,2599.6,6.84673]
[1723855434890,1.665,2599.8,2599.6,3.0]
[1723855436618,1.665,2599.8,2599.5,3.0]
[1723855436919,1.665,2599.6,2599.5,3.0]
[1723855437323,1.665,2599.6,2599.5,6.84689]
[1723855438426,0.7,2600.5,2599.7,3.84658]
[1723855438427,2.4653,2600.4,2599.7,3.84658]
[1723855438634,1.665,2600.0,2599.8,3.0]
[1723855438788,1.665,2600.0,2599.8,3.684658]
[1723855439486,1.665,2600.0,2599.8,7.530988]
[1723855440794,1.665,2600.0,2599.8,3.684658]
[1723855441928,0.7,2600.2,2599.8,3.0]
[1723855442226,2.4653,2600.1,2599.6,3.0]
[1723855442391,2.53022363,2600.1,2599.6,3.0]
[1723855442587,2.4653,2600.1,2599.6,3.0]
[1723855443330,2.4653,2600.1,2599.6,5.4742]
[1723855445188,2.4653,2600.1,2599.6,3.0]
[1723855446496,2.4653,2600.3,2599.6,6.84672]
[1723855446820,2.4653,2600.3,2599.7,3.84646]
[1723855447006,0.0650038,2600.2,2599.8,3.0]
[1723855447333,2.4653,2600.3,2599.8,3.0]
[1723855447532,0.06491956,2600.1,2599.8,3.0]
[1723855447703,0.06475649,2600.2,2599.9,0.684646]
[1723855447905,2.4653,2600.3,2599.9,0.684646]
[1723855448393,0.0650038,2600.2,2599.9,0.684646]
[1723855448793,2.4653,2600.3,2599.9,0.684646]
[1723855449357,0.0650038,2600.2,2599.9,0.684646]
[1723855449689,2.4653,2600.3,2599.9,0.684646]
[1723855449891,0.06491956,2600.1,2599.9,0.684646]
[1723855450125,2.4653,2600.3,2599.9,0.684646]
[1723855450323,0.1271548,2600.2,2599.9,0.684646]
[1723855450594,0.0650038,2600.2,2599.9,0.684646]
[1723855451238,0.19207582,2600.1,2599.9,0.684646]
[1723855451404,0.06491956,2600.1,2599.9,0.684646]
[1723855451730,0.12716007,2600.0,2599.9,0.684646]
[1723855452034,0.19200199,2600.0,2599.7,3.0]
[1723855452195,0.19200199,2600.0,2599.7,1.032]
[1723855452196,2.44596007,2599.9,2599.7,1.032]
[1723855452395,2.3188,2599.9,2599.7,1.032]
[1723855452728,0.0646734,2599.8,2599.7,1.032]
[1723855453121,0.0646734,2599.8,2599.5,0.18960551]
[1723855453321,0.0646734,2599.8,2599.4,3.0]
[1723855457747,0.0646734,2599.8,2599.2,7.32]
[1723855457748,2.3188,2599.6,2599.2,7.32]
[1723855458101,0.19158327,2599.5,2599.2,7.32]
[1723855458308,0.06439917,2599.5,2599.3,1.13546402]
[1723855459248,0.06439917,2599.5,2599.3,4.13546402]
[1723855460454,2.3188,2599.8,2599.3,4.98264402]
[1723855460671,0.19173969,2599.7,2599.4,3.4135464]
[1723855460818,2.3188,2599.8,2599.4,3.4135464]
[1723855461023,0.06455908,2599.7,2599.5,3.0]
[1723855461326,2.3188,2599.8,2599.4,0.4135464]
[1723855461565,0.12717976,2599.7,2599.4,3.4135464]
[1723855461724,0.06456264,2599.7,2599.4,3.4135464]
[1723855461944,1.665,2599.6,2599.5,0.59073464]
[1723855462463,1.72947126,2599.6,2599.5,0.59073464]
[1723855463165,1.665,2599.6,2599.5,0.59073464]
[1723855466372,1.72952342,2599.6,2599.5,0.59073464]
[1723855474610,1.72952342,2599.6,2599.4,5.42109986]
[1723855474810,1.72952342,2599.6,2599.4,3.4135464]
[1723855476050,1.72952342,2599.6,2599.4,5.42112126]
[1723855476205,1.72952342,2599.6,2599.4,3.0]
[1723855477949,1.72952342,2599.6,2599.2,5.81138105]
[1723855478148,1.665,2599.3,2599.2,5.81138105]
[1723855478305,1.665,2599.3,2599.2,7.14981605]
[1723855478510,1.665,2599.3,2599.2,7.83412965]
[1723855479407,1.665,2599.5,2599.2,10.89743584]
[1723855479606,1.665,2599.5,2599.3,3.34600986]
[1723855479839,1.665,2599.5,2599.4,3.52264752]
[1723855480206,1.79218533,2599.5,2599.4,3.52264752]
[1723855480423,1.665,2599.5,2599.4,0.52264752]
[1723855480637,1.665,2599.5,2599.3,3.0]
[1723855482003,0.06402734,2599.4,2599.3,3.0]
[1723855482211,0.06402734,2599.4,2599.3,4.33848104]
[1723855484711,0.06402734,2599.4,2599.3,1.33848104]
[1723855484909,0.06402734,2599.4,2599.2,3.0]
[1723855485124,1.665,2599.3,2599.2,4.58022184]
[1723855485421,1.665,2599.3,2599.2,4.3385008]
[1723855489246,1.665,2599.3,2599.2,4.33850092]
[1723855489934,1.665,2599.3,2599.2,3.0]
[1723855490136,1.665,2599.3,2599.2,1.33848891]
[1723855491254,1.665,2599.5,2599.2,7.99735846]
[1723855491427,1.665,2599.5,2599.3,6.34622227]
[1723855491626,0.06168177,2599.4,2599.3,5.00773336]
[1723855491817,0.06168177,2599.4,2599.3,6.34612904]
[1723855492014,1.665,2599.5,2599.3,6.34612904]
[1723855492355,1.665,2599.5,2599.3,3.0]
[1723855492515,1.665,2599.5,2599.4,1.33843369]
[1723855492914,1.79218043,2599.5,2599.3,3.0]
[1723855493152,1.665,2599.5,2599.3,4.471317]
[1723855493358,1.665,2599.5,2599.3,6.47905036]
[1723855493515,1.665,2599.5,2599.4,1.3384398]
[1723855494554,1.665,2599.5,2599.4,3.34603385]
[1723855494761,1.665,2599.5,2599.4,4.33841354]
[1723855495060,1.79218142,2599.5,2599.4,6.34602156]
[1723855495214,1.79218142,2599.5,2599.4,4.33841354]
[1723855495215,1.85394619,2599.5,2599.4,4.33841354]
[1723855495422,1.85394619,2599.5,2599.4,6.34605299]
[1723855496255,1.72676607,2599.5,2599.4,6.8855033]
[1723855497966,1.85394658,2599.5,2599.4,6.8855033]
[1723855498291,1.85394895,2599.5,2599.4,6.8855033]
[1723855499180,4.28654895,2599.5,2599.4,6.34605299]
[1723855499355,4.28654895,2599.5,2599.4,3.0]
[1723855499569,4.28654895,2599.5,2599.3,5.00781585]
[1723855499769,0.12718288,2599.4,2599.2,5.00781585]
[1723855499969,4.15936607,2599.5,2599.2,3.0]
[1723855499970,1.665,2599.3,2599.2,3.0]
[1723855500193,1.665,2599.3,2599.2,3.34636385]
[1723855500378,2.4326,2599.2,2599.0,2.00803476]
[1723855500593,1.79219238,2599.1,2598.8,0.80380619]
[1723855500908,1.665,2598.9,2598.7,0.80380619]
[1723855501081,2.4326,2599.2,2598.8,4.15085961]
[1723855501278,0.18872912,2599.1,2598.9,3.34705342]
[1723855501483,0.18872912,2599.1,2599.0,1.33868916]
[1723855501484,0.06152283,2599.1,2599.0,1.33868916]
[1723855501678,0.18872793,2599.1,2598.9,2.00803374]
[1723855501986,1.7922051,2599.0,2598.8,0.6123162]
[1723855502187,1.665,2599.0,2598.9,3.34685421]
[1723855502373,1.665,2599.0,2598.9,6.34685421]
[1723855502591,1.665,2599.0,2598.9,6.34674427]
[1723855502798,1.665,2599.0,2598.9,4.33869771]
[1723855503000,1.665,2599.0,2598.9,1.33869771]
[1723855503302,1.665,2599.0,2598.9,4.33869771]
[1723855503493,1.665,2599.0,2598.9,3.0]
[1723855503804,1.665,2599.0,2598.9,4.33874077]
[1723855503980,1.665,2599.0,2598.9,3.0]
[1723855504608,1.665,2599.0,2598.8,3.6123162]
[1723855504800,1.665,2599.0,2598.8,3.0]
[1723855505247,1.665,2599.0,2598.9,1.33872891]
[1723855505912,1.665,2599.0,2598.8,5.00810972]
[1723855506114,0.06125113,2598.9,2598.8,5.00810972]
[1723855506317,1.665,2599.0,2598.8,4.33870987]
[1723855506515,1.665,2599.0,2598.8,3.0]
[1723855506714,0.06125113,2598.9,2598.8,6.84792]
[1723855506917,1.665,2599.1,2599.0,3.84763]
[1723855507215,1.665,2599.1,2599.0,6.84763]
[1723855510825,1.665,2599.1,2599.0,8.18620096]
[1723855511032,4.91119409,2600.1,2599.7,3.84645]
[1723855511255,2.348,2600.4,2599.9,3.84629]
[1723855511398,0.12715345,2600.3,2600.1,3.84598]
[1723855511749,0.05990624,2600.3,2600.2,3.0]
[1723855511949,2.348,2600.6,2600.0,3.0]
[1723855512212,1.665,2600.1,2600.0,3.67579881]
[1723855512503,1.665,2600.1,2600.0,3.0]
[1723855512676,1.665,2600.1,2599.8,5.00720369]
[1723855512872,1.665,2599.9,2599.8,6.20042224]
[1723855513075,1.665,2599.9,2599.8,6.34531717]
[1723855513317,1.665,2599.9,2599.8,4.33811348]
[1723855513802,1.665,2599.9,2599.8,3.0]
[1723855514012,2.348,2600.6,2600.2,3.84571]
[1723855514311,1.665,2600.4,2600.3,3.0]
[1723855514472,5.1143,2600.4,2600.3,3.0]
[1723855514808,5.1143,2600.4,2599.6,2.10079737]
[1723855514809,4.19358341,2600.4,2599.7,3.0]
[1723855514969,1.665,2600.3,2600.1,3.84589]
[1723855515163,1.665,2600.3,2600.2,3.0]
[1723855515563,1.665,2600.3,2600.1,3.0]
[1723855515999,1.665,2600.3,2600.2,3.84585]
[1723855516302,1.665,2600.3,2600.2,6.84585]
[1723855516705,1.665,2600.3,2600.2,3.0]
[1723855516905,1.665,2600.3,2600.1,3.0]
[1723855519209,1.665,2600.3,2600.1,6.846]
[1723855521271,1.665,2600.3,2600.1,7.99785883]
[1723855522299,1.665,2600.3,2600.1,6.846]
[1723855522665,1.665,2600.5,2600.2,3.84574]
[1723855522911,1.665,2600.5,2600.3,3.0]
[1723855523075,1.665,2600.5,2600.2,0.91183]
[1723855523663,1.665,2600.3,2600.1,6.84591]
[1723855525518,4.013,2600.3,2600.1,3.0]
[1723855525670,4.013,2600.3,2600.0,3.0]
[1723855525994,1.665,2600.1,2600.0,3.0]
[1723855526378,1.71830649,2600.1,2600.0,3.0]
[1723855526711,1.665,2600.1,2600.0,3.0]
[1723855529196,1.665,2600.1,2599.8,3.84644]
[1723855529197,2.348,2600.3,2599.9,6.84626]
[1723855529421,1.665,2600.3,2599.9,7.615505]
[1723855529911,1.665,2600.3,2600.0,3.84605]
[1723855530111,1.665,2600.3,2600.1,4.1461555]
[1723855530468,1.665,2600.3,2600.1,3.0]
[1723855531224,1.665,2600.3,2600.0,3.0]
[1723855531384,1.665,2600.5,2600.2,3.84583]
[1723855531586,2.2898,2601.1,2600.6,3.84518]
[1723855531797,1.665,2600.9,2600.7,3.769056]
[1723855532080,1.665,2600.9,2600.5,10.00059]
[1723855532081,1.665,2600.9,2600.6,3.0]
[1723855533220,2.2898,2601.1,2600.6,3.0]
[1723855533528,1.665,2600.9,2600.6,3.0]
[1723855534194,2.2898,2601.1,2600.6,3.0]
[1723855534394,0.05455608,2601.0,2600.7,3.84502]
[1723855534652,0.05455608,2601.0,2600.8,6.84493]
[1723855534988,1.665,2600.9,2600.8,6.84493]
[1723855535700,3.9548,2600.9,2600.8,3.0]
[1723855535912,3.9548,2600.9,2600.4,3.84548]
[1723855535913,4.35028,2600.9,2600.5,3.0]
[1723855536100,1.665,2600.6,2600.5,3.0]
[1723855537788,1.665,2600.6,2600.3,3.0]
[1723855539532,1.665,2600.6,2600.3,6.84562]
[1723855539828,1.665,2600.6,2600.3,8.145748]
[1723855540006,1.665,2600.6,2600.5,3.84541]
[1723855540187,1.665,2600.6,2600.5,6.84541]
[1723855540526,1.665,2600.8,2600.5,10.69074]
[1723855540729,1.665,2600.8,2600.6,7.55587931]
[1723855541989,1.665,2600.8,2600.6,7.55581931]
[1723855542232,1.665,2601.0,2600.8,3.84496]
[1723855542432,1.665,2601.0,2600.9,3.384496]
[1723855542659,1.665,2601.2,2600.9,7.229316]
[1723855542874,1.665,2601.2,2600.9,6.84482]
[1723855543042,1.665,2601.0,2600.9,6.84482]
[1723855543371,1.665,2601.0,2600.9,3.0]
[1723855543575,1.665,2601.0,2600.8,5.3099]
[1723855543756,1.665,2601.0,2600.8,6.38096993]
[1723855543972,1.665,2601.0,2600.8,10.22592993]
[1723855544283,1.665,2601.2,2601.1,3.84452]
[1723855544434,1.665,2601.2,2601.1,7.228972]
[1723855544928,1.71977829,2601.2,2601.1,7.228972]
[1723855545171,1.665,2601.2,2601.1,7.228972]
[1723855545370,1.665,2601.2,2601.1,3.0]
[1723855545542,1.665,2601.2,2601.0,3.0]
[1723855545879,1.665,2601.2,2601.0,6.84466]
[1723855546478,1.665,2601.2,2601.0,3.0]
[1723855547646,2.2898,2601.1,2600.8,3.0]
[1723855547973,1.665,2600.9,2600.8,3.0]
[1723855548182,1.665,2600.9,2600.6,3.0]
[1723855548383,1.665,2600.7,2600.6,6.84526]
[1723855548687,1.665,2600.7,2599.9,6.15608]
[1723855548688,3.9548,2600.7,2599.9,6.15608]
[1723855548981,1.665,2600.2,2600.1,3.846]
[1723855549268,1.665,2600.4,2600.1,7.69183]
[1723855549575,1.665,2600.4,2600.1,8.461013]
[1723855549775,1.665,2600.4,2600.2,3.84583]
[1723855549974,2.2898,2600.7,2600.1,4.615093]
[1723855550177,0.0537495,2600.6,2600.1,3.84591]
[1723855551571,2.2898,2600.7,2600.2,3.0]
[1723855551883,0.05373016,2600.6,2600.2,3.0]
[1723855552408,0.05373016,2600.6,2600.2,6.84582]
[1723855552681,0.05373016,2600.6,2600.2,3.0]
[1723855553277,0.05373016,2600.6,2600.3,3.8457]
[1723855553607,0.05373016,2600.6,2600.4,3.0]
[1723855554250,0.05373016,2600.6,2600.5,7.69082]
[1723855554453,0.05373016,2600.6,2600.5,10.69082]
[1723855554761,2.2689,2601.0,2600.5,10.69082]
[1723855554762,2.2689,2601.0,2600.6,3.84525]
[1723855555065,0.05441134,2600.9,2600.7,3.0]
[1723855556554,0.28674247,2600.9,2600.7,3.0]
[1723855556756,4.28074247,2600.9,2600.5,3.0]
[1723855556964,4.28074247,2600.9,2600.3,6.84562]
[1723855557160,4.04841134,2600.9,2600.3,9.29812]
[1723855557389,0.05441134,2600.9,2600.5,3.84539]
[1723855557726,0.05441134,2600.9,2600.6,3.0]
[1723855559818,0.05441134,2600.9,2600.5,3.0]
[1723855559983,0.05441134,2600.9,2600.4,3.0]
[1723855560383,0.05441134,2600.9,2600.6,3.84525]
[1723855560717,0.05441134,2600.9,2600.7,3.0]
[1723855560923,0.05441134,2600.9,2600.6,3.0]
[1723855561513,0.05441134,2600.9,2600.8,3.84497]
[1723855561819,2.2689,2601.2,2600.8,3.0]
[1723855561991,0.0542927,2601.1,2600.8,6.84495]
[1723855562188,0.0542927,2601.1,2600.9,3.0]
[1723855562715,0.0542927,2601.1,2601.0,0.07689075]
[1723855563227,9.7289,2601.8,2601.0,2.4525]
[1723855563377,9.7289,2601.8,2600.9,6.84474]
[1723855563378,0.12709046,2601.7,2600.9,6.84474]
[1723855563583,0.12709046,2601.6,2600.9,6.84474]
[1723855563881,2.2689,2601.8,2600.9,6.84474]
[1723855563882,0.12709046,2601.5,2601.0,3.84467]
[1723855564090,0.12709046,2601.4,2601.1,3.0]
[1723855564390,2.2689,2601.8,2601.1,4.068941]
[1723855564598,3.994,2601.6,2601.1,3.0]
[1723855564847,2.39599162,2601.5,2601.0,3.0]
[1723855565020,0.12709162,2601.4,2601.0,3.0]
[1723855565665,0.07709162,2601.4,2601.0,3.0]
[1723855565861,2.2689,2601.5,2601.0,3.0]
[1723855566313,2.2689,2601.5,2601.0,4.416474]
[1723855566515,6.2629,2601.3,2601.0,3.0]
[1723855566821,6.2629,2601.3,2600.9,3.0]
[1723855566822,0.05077752,2601.2,2600.9,3.0]
[1723855567024,0.05077752,2601.2,2600.9,4.416502]
[1723855567249,6.2629,2601.3,2600.8,3.0]
[1723855567551,2.2689,2600.9,2600.5,7.32]
[1723855567722,2.2689,2600.9,2600.6,3.84526]
[1723855567925,2.2689,2600.9,2600.5,11.16531]
[1723855567926,0.05009864,2600.8,2600.5,11.16531]
[1723855568121,0.05009864,2600.8,2600.5,12.666392]
[1723855568324,2.2678,2601.2,2600.6,3.84526]
[1723855568584,0.05064556,2601.1,2600.5,12.666392]
[1723855568755,0.05064556,2601.1,2600.6,0.50967531]
[1723855569052,0.05064556,2601.1,2600.8,3.84496]
[1723855569254,0.05064556,2601.1,2600.9,3.0]
[1723855570253,0.05064556,2601.1,2600.7,6.84503]
[1723855570458,0.05064556,2601.1,2600.7,8.346132]
[1723855570753,0.05064556,2601.1,2601.0,7.68934]
[1723855570968,2.2678,2601.7,2601.3,3.84414]
[1723855571163,2.2678,2601.7,2601.4,0.384414]
[1723855571363,2.2678,2601.7,2601.4,3.384414]
[1723855571521,0.05,2601.9,2601.4,3.384414]
[1723855571522,0.05,2601.9,2601.4,7.228464]
[1723855572018,0.05,2601.9,2601.4,3.384414]
[1723855572655,3.994,2601.8,2601.4,3.0]
[1723855572969,3.994,2601.8,2601.2,3.0]
[1723855572970,2.2678,2601.7,2601.2,3.0]
[1723855573295,2.2678,2601.7,2601.3,1.068888]
[1723855573755,2.2678,2601.7,2601.3,4.913108]
[1723855573756,0.04552674,2601.6,2601.3,4.913108]
[1723855573956,0.04552674,2601.6,2601.4,6.84404]
[1723855574191,0.05,2601.9,2601.4,6.84404]
[1723855574510,0.05,2601.9,2601.5,0.94187931]
[1723855575995,0.05,2601.9,2601.5,4.78579931]
[1723855576199,0.05,2601.9,2601.6,3.0]
[1723855576399,0.05,2601.9,2601.7,3.84353]
[1723855576605,0.05,2601.9,2601.8,3.0]
[1723855576896,0.05,2601.9,2601.8,4.068888]
[1723855577069,0.05,2601.9,2601.8,7.912378]
[1723855577274,0.0940914,2601.9,2601.8,11.755868]
[1723855577470,0.00376874,2601.9,2601.8,19.2969739]
[1723855577782,2.2678,2602.6,2602.2,3.8428]
[1723855578093,0.04354915,2602.5,2602.3,3.0]
[1723855578988,2.9678,2602.9,2602.3,3.07684435]
[1723855579200,0.04380144,2602.8,2602.3,9.20321]
[1723855579502,2.9678,2603.2,2602.5,3.84235]
[1723855579651,0.04390257,2602.7,2602.6,3.0]
[1723855579850,3.66398,2603.2,2602.6,3.0]
[1723855580269,0.04435319,2603.1,2602.6,3.0]
[1723855580654,0.04435319,2603.1,2602.4,0.30768443]
[1723855580655,0.04435319,2603.1,2602.4,3.30768443]
[1723855580852,0.04435319,2603.1,2602.4,7.15025443]
[1723855581468,0.04435319,2603.1,2602.4,3.30768443]
[1723855581870,0.04435319,2603.1,2602.4,7.15026443]
[1723855582114,0.04435319,2603.1,2602.5,0.76120357]
[1723855583196,2.2678,2603.0,2602.5,0.76120357]
[1723855583399,0.04418589,2602.9,2602.4,7.15027443]
[1723855583574,0.04418589,2602.9,2602.4,3.30768443]
[1723855583909,3.994,2602.7,2602.4,3.0]
[1723855584073,2.2678,2602.6,2602.3,3.0]
[1723855584411,2.31112965,2602.6,2602.3,3.0]
[1723855584710,2.2678,2602.3,2601.8,7.32]
[1723855585063,0.04298044,2602.2,2601.8,7.32]
[1723855585466,2.2678,2602.5,2601.8,11.16348]
[1723855585671,0.04289629,2602.1,2601.8,11.16348]
[1723855585976,0.04281214,2602.0,2601.8,15.00687]
[1723855586178,2.2678,2602.5,2601.9,5.3606]
[1723855586386,0.04319649,2602.4,2601.9,6.861287]
[1723855586557,2.2678,2602.5,2601.9,6.861287]
[1723855586759,0.04319649,2602.4,2601.9,6.861287]
[1723855587097,2.2678,2602.5,2602.0,0.51008031]
[1723855587472,0.04319649,2602.4,2602.0,0.51008031]
[1723855587894,3.994,2602.7,2602.1,3.843]
[1723855588199,0.04335965,2602.6,2602.2,3.0]
[1723855588404,2.2678,2602.8,2602.2,3.0]
[1723855588588,0.04344377,2602.7,2602.2,3.0]
[1723855588789,2.4976,2602.6,2602.0,3.0]
[1723855588967,0.04322826,2602.5,2602.0,3.0]
[1723855589161,0.04322826,2602.5,2602.1,0.684323]
[1723855589767,3.994,2602.4,2602.0,3.0]
[1723855589990,7.46,2603.2,2601.3,11.16416]
[1723855589991,2.4976,2602.0,2601.3,11.16416]
[1723855590191,2.4976,2602.0,2601.4,3.84408]
[1723855590192,0.04276205,2601.9,2601.4,3.84408]
[1723855590410,0.04276205,2601.9,2601.5,1.500824]
[1723855590700,0.04276205,2601.9,2601.4,3.84408]
[1723855590701,0.04125248,2601.8,2601.3,7.32]
[1723855591078,2.49036205,2602.0,2601.3,7.32]
[1723855591400,2.49036205,2602.0,2601.5,3.84391]
[1723855591576,0.04164681,2601.9,2601.3,12.28055]
[1723855591899,0.04164681,2601.9,2601.4,3.84405]
[1723855592084,0.04164681,2601.9,2601.5,3.0]
[1723855592297,0.04164681,2601.9,2601.6,0.684405]
[1723855592800,0.04164681,2601.9,2601.5,3.0]
[1723855593007,0.04164681,2601.9,2601.4,3.0]
[1723855593390,0.04164681,2601.9,2601.5,3.84389]
[1723855593566,0.04164681,2601.9,2601.6,3.684389]
[1723855593761,0.04164681,2601.9,2601.6,3.0]
[1723855593974,0.04164681,2601.9,2601.4,3.0]
[1723855594977,0.04164681,2601.9,2601.4,6.84405]
[1723855596922,2.4976,2601.8,2601.4,3.0]
[1723855597424,0.04107887,2601.7,2601.4,3.0]
[1723855597571,2.4976,2601.8,2601.4,3.0]
[1723855598323,0.04129926,2601.7,2601.4,3.0]
[1723855598684,0.04129926,2601.7,2601.4,4.416434]
[1723855598883,2.4976,2601.8,2601.4,4.416434]
[1723855599089,2.4976,2601.8,2601.4,3.0]
[1723855599392,0.04129926,2601.7,2601.4,3.0]
[1723855600043,0.04129926,2601.7,2601.2,3.0]
[1723855600242,0.04129926,2601.7,2601.0,3.0]
[1723855600398,0.04129926,2601.7,2601.0,3.611032]
[1723855600804,0.04129926,2601.7,2601.0,7.455682]
[1723855601830,2.4976,2601.6,2601.0,3.611032]
[1723855602197,0.04110299,2601.5,2601.1,0.7455752]
[1723855602532,2.4976,2601.6,2601.1,0.7455752]
[1723855603315,2.4976,2601.6,2601.1,4.5900852]
[1723855603503,2.4976,2601.6,2601.2,3.0]